[Event "Gibraltar Masters 18th"]
[Site "Gibraltar"]
[Date "2020.01.25"]
[Round "5.36"]
[White "Buksa, Nataliya"]
[Black "Ali Marandi, Cemil Can"]
[Result "1-0"]
[ECO "B32"]
[WhiteElo "2403"]
[BlackElo "2546"]
[PlyCount "79"]
[EventDate "2020.01.21"]
[EventType "swiss"]
[EventRounds "10"]
[EventCountry "GGB"]
[SourceTitle "BritBase"]
[Source "John Saunders"]
[SourceDate "2021.06.05"]
[SourceVersion "1"]
[SourceVersionDate "2021.06.05"]
[SourceQuality "1"]
[TimeControl "40/100:0"]
[WhiteClock "0:08:32"]
[BlackClock "0:00:43"]

1. e4 {[%emt 0:00:00]} c5 {[%emt 0:00:00]} 2. Nf3 {[%emt 0:00:00]} Nc6 {
[%emt 0:00:00]} 3. d4 {[%emt 0:00:00]} cxd4 {[%emt 0:00:00]} 4. Nxd4 {[%emt 0:
00:00]} e5 {[%emt 0:00:00]} 5. Nb5 {[%emt 0:00:00]} d6 {[%emt 0:00:00]} 6. N1c3
{[%emt 0:00:00]} a6 {[%emt 0:00:00]} 7. Na3 {[%emt 0:00:00]} b5 {[%emt 0:00:00]
} 8. Nd5 {[%emt 0:00:00]} Nge7 {[%emt 0:00:00]} 9. Bg5 {[%emt 0:00:00]} f6 {
[%emt 0:00:00]} 10. Be3 {[%emt 0:00:00]} Nxd5 {[%emt 0:00:00]} 11. exd5 {
[%emt 0:00:00]} Ne7 {[%emt 0:00:00]} 12. c4 {[%emt 0:00:00]} Nf5 {[%emt 0:00:
00]} 13. cxb5 {[%emt 0:00:00]} Nxe3 {[%emt 0:00:00]} 14. fxe3 {[%emt 0:00:00]}
Be7 {[%emt 0:00:00]} 15. Nc2 {[%emt 0:00:00]} O-O {[%emt 0:00:00]} 16. Nb4 {
[%emt 0:00:00]} f5 {[%emt 0:00:00]} 17. Nc6 {[%emt 0:00:00]} Qe8 {[%emt 0:00:
00]} 18. Qb3 {[%emt 0:00:00]} f4 {[%emt 0:00:00]} 19. e4 {[%emt 0:00:00]} Bh4+
{[%emt 0:00:00]} 20. g3 {[%emt 0:00:00]} fxg3 {[%emt 0:00:00]} 21. O-O-O {
[%emt 0:00:00]} axb5 {[%emt 0:00:00]} 22. hxg3 {[%emt 0:00:00]} Bg5+ {[%emt 0:
00:00]} 23. Kb1 {[%emt 0:00:00]} Bg4 {[%emt 0:00:00]} 24. Bxb5 {[%emt 0:00:00]}
Qg6 {[%emt 0:00:00]} 25. Rdf1 {[%emt 0:00:00]} Qxe4+ {[%emt 0:00:00]} 26. Bd3 {
[%emt 0:00:00]} Rxf1+ {[%emt 0:00:00]} 27. Rxf1 {[%emt 0:00:00]} Qa4 {[%emt 0:
00:00]} 28. Qxa4 {[%emt 0:00:00]} Rxa4 {[%emt 0:00:00]} 29. b3 {[%emt 0:00:00]}
Ra8 {[%emt 0:00:00]} 30. a4 {[%emt 0:00:00]} Bh3 {[%emt 0:00:00]} 31. Rf2 {
[%emt 0:00:00]} g6 {[%emt 0:00:00]} 32. a5 {[%emt 0:00:00]} Bd7 {[%emt 0:00:00]
} 33. b4 {[%emt 0:00:00]} Kg7 {[%emt 0:00:00]} 34. b5 {[%emt 0:00:00]} e4 {
[%emt 0:00:00]} 35. Bxe4 {[%emt 0:00:00]} Re8 {[%emt 0:00:00]} 36. Bd3 {
[%emt 0:00:00]} Re1+ {[%emt 0:00:04]} 37. Ka2 {[%emt 0:00:00]} Rd1 {[%emt 0:00:
00]} 38. b6 {[%emt 0:00:00]} Rxd3 {[%emt 0:00:57]} 39. b7 {[%emt 0:00:00]} Bxc6
{[%emt 0:00:00]} 40. dxc6 {[%emt 0:00:00]} 1-0

[Event "Gibraltar Masters 18th"]
[Site "Gibraltar"]
[Date "2020.01.25"]
[Round "5.37"]
[White "Houska, Jovanka"]
[Black "Studer, Noel"]
[Result "0-1"]
[ECO "D02"]
[WhiteElo "2401"]
[BlackElo "2546"]
[PlyCount "142"]
[EventDate "2020.01.21"]
[EventType "swiss"]
[EventRounds "10"]
[EventCountry "GGB"]
[SourceTitle "BritBase"]
[Source "John Saunders"]
[SourceDate "2021.06.05"]
[SourceVersion "1"]
[SourceVersionDate "2021.06.05"]
[SourceQuality "1"]
[TimeControl "40/100:0"]
[WhiteClock "0:56:31"]
[BlackClock "0:07:15"]

1. d4 {[%emt 0:00:00]} d5 {[%emt 0:00:00]} 2. Nf3 {[%emt 0:00:00]} Nf6 {
[%emt 0:00:00]} 3. Bf4 {[%emt 0:00:00]} c5 {[%emt 0:00:00]} 4. e3 {[%emt 0:00:
00]} Nc6 {[%emt 0:00:00]} 5. Nbd2 {[%emt 0:00:00]} Qb6 {[%emt 0:00:00]} 6. dxc5
{[%emt 0:00:00]} Qxb2 {[%emt 0:00:00]} 7. Rb1 {[%emt 0:00:00]} Qc3 {[%emt 0:00:
00]} 8. Bb5 {[%emt 0:00:00]} e6 {[%emt 0:00:00]} 9. O-O {[%emt 0:00:00]} Be7 {
[%emt 0:00:00]} 10. Ne5 {[%emt 0:00:00]} Bd7 {[%emt 0:00:00]} 11. Nd3 {[%emt 0:
00:00]} O-O {[%emt 0:00:00]} 12. Bc7 {[%emt 0:00:00]} b6 {[%emt 0:00:00]} 13.
a4 {[%emt 0:00:00]} Ne8 {[%emt 0:00:00]} 14. Be5 {[%emt 0:00:00]} Nxe5 {
[%emt 0:00:00]} 15. Rb3 {[%emt 0:00:00]} Qa5 {[%emt 0:00:00]} 16. Nxe5 {
[%emt 0:00:00]} Bxb5 {[%emt 0:00:00]} 17. axb5 {[%emt 0:00:00]} bxc5 {[%emt 0:
00:00]} 18. b6 {[%emt 0:00:00]} Qa6 {[%emt 0:00:00]} 19. b7 {[%emt 0:00:00]}
Rb8 {[%emt 0:00:00]} 20. Nd7 {[%emt 0:00:00]} Rxb7 {[%emt 0:00:00]} 21. Rxb7 {
[%emt 0:00:00]} Qxb7 {[%emt 0:00:00]} 22. Nxf8 {[%emt 0:00:00]} Kxf8 {[%emt 0:
00:00]} 23. Qa1 {[%emt 0:00:00]} Bd8 {[%emt 0:00:00]} 24. Rb1 {[%emt 0:00:00]}
Bb6 {[%emt 0:00:00]} 25. c4 {[%emt 0:00:00]} Qc7 {[%emt 0:00:00]} 26. Rc1 {
[%emt 0:00:00]} Nf6 {[%emt 0:00:00]} 27. h3 {[%emt 0:00:00]} h6 {[%emt 0:00:00]
} 28. Qa3 {[%emt 0:00:00]} Kg8 {[%emt 0:00:00]} 29. Qd3 {[%emt 0:00:00]} Ba5 {
[%emt 0:00:00]} 30. Nb3 {[%emt 0:00:00]} Bb4 {[%emt 0:00:00]} 31. Qc2 {[%emt 0:
00:00]} Ne4 {[%emt 0:00:00]} 32. Qd3 {[%emt 0:00:00]} Nf6 {[%emt 0:00:00]} 33.
Qc2 {[%emt 0:00:00]} Ne4 {[%emt 0:00:00]} 34. Qd3 {[%emt 0:00:00]} Qe5 {
[%emt 0:00:00]} 35. f3 {[%emt 0:00:00]} dxc4 {[%emt 0:00:00]} 36. Qxc4 {
[%emt 0:00:00]} Nd2 {[%emt 0:00:00]} 37. Qd3 {[%emt 0:00:00]} Nxb3 {[%emt 0:00:
00]} 38. Qxb3 {[%emt 0:00:00]} Bd2 {[%emt 0:00:00]} 39. Rb1 {[%emt 0:00:00]}
Bxe3+ {[%emt 0:00:00]} 40. Kf1 {[%emt 0:00:00]} Bf4 {[%emt 0:00:20]} 41. Qa4 {
[%emt 0:00:00]} Qc3 {[%emt 0:00:00]} 42. Rd1 {[%emt 0:00:00]} Be3 {[%emt 0:00:
00]} 43. Rd8+ {[%emt 0:00:00]} Kh7 {[%emt 0:00:00]} 44. Qe4+ {[%emt 0:00:00]}
g6 {[%emt 0:00:00]} 45. Rd7 {[%emt 0:00:00]} Kg8 {[%emt 0:00:00]} 46. Qd3 {
[%emt 0:00:00]} Qa1+ {[%emt 0:00:00]} 47. Qd1 {[%emt 0:05:44]} Qa5 {[%emt 0:00:
00]} 48. Qd6 {[%emt 0:00:00]} Bd4 {[%emt 0:00:00]} 49. Qe7 {[%emt 0:00:00]}
Qb5+ {[%emt 0:00:00]} 50. Ke1 {[%emt 0:00:00]} Qb1+ {[%emt 0:00:00]} 51. Kd2 {
[%emt 0:00:00]} Qb2+ {[%emt 0:00:00]} 52. Kd1 {[%emt 0:00:00]} Qb3+ {[%emt 0:
00:00]} 53. Kd2 {[%emt 0:00:00]} Qc3+ {[%emt 0:00:00]} 54. Kd1 {[%emt 0:00:00]}
Qd3+ {[%emt 0:00:00]} 55. Ke1 {[%emt 0:00:00]} Qe3+ {[%emt 0:00:00]} 56. Kd1 {
[%emt 0:00:00]} Qg1+ {[%emt 0:00:00]} 57. Kc2 {[%emt 0:00:00]} Qxg2+ {[%emt 0:
00:00]} 58. Kc1 {[%emt 0:00:00]} Qb2+ {[%emt 0:00:00]} 59. Kd1 {[%emt 0:00:00]}
Qb3+ {[%emt 0:00:00]} 60. Kd2 {[%emt 0:00:00]} Qc3+ {[%emt 0:00:00]} 61. Kd1 {
[%emt 0:00:00]} Qxf3+ {[%emt 0:00:00]} 62. Kd2 {[%emt 0:00:00]} Qg2+ {[%emt 0:
01:50]} 63. Kd1 {[%emt 0:00:00]} Qg1+ {[%emt 0:00:25]} 64. Ke2 {[%emt 0:00:00]}
Qf2+ {[%emt 0:00:00]} 65. Kd1 {[%emt 0:00:00]} Qf1+ {[%emt 0:00:00]} 66. Kd2 {
[%emt 0:00:00]} Qf4+ {[%emt 0:00:00]} 67. Kd1 {[%emt 0:00:00]} a5 {[%emt 0:00:
00]} 68. Rd8+ {[%emt 0:00:00]} Kg7 {[%emt 0:00:00]} 69. Qf8+ {[%emt 0:00:00]}
Kf6 {[%emt 0:00:00]} 70. Rd7 {[%emt 0:00:00]} Qf3+ {[%emt 0:00:00]} 71. Kd2 {
[%emt 0:00:00]} Qe3+ {[%emt 0:00:00]} 0-1

[Event "Gibraltar Masters 18th"]
[Site "Gibraltar"]
[Date "2020.01.25"]
[Round "5.38"]
[White "Muzychuk, Anna"]
[Black "Kulkarni, Bhakti"]
[Result "1-0"]
[ECO "C60"]
[WhiteElo "2539"]
[BlackElo "2404"]
[PlyCount "89"]
[EventDate "2020.01.21"]
[EventType "swiss"]
[EventRounds "10"]
[EventCountry "GGB"]
[SourceTitle "BritBase"]
[Source "John Saunders"]
[SourceDate "2021.06.05"]
[SourceVersion "1"]
[SourceVersionDate "2021.06.05"]
[SourceQuality "1"]
[TimeControl "40/100:0"]
[WhiteClock "0:45:31"]
[BlackClock "0:47:56"]

1. e4 {[%emt 0:00:00]} e5 {[%emt 0:00:00]} 2. Nf3 {[%emt 0:00:00]} Nc6 {
[%emt 0:00:00]} 3. Bb5 {[%emt 0:00:00]} g6 {[%emt 0:00:00]} 4. c3 {[%emt 0:00:
00]} Bg7 {[%emt 0:00:00]} 5. d4 {[%emt 0:00:00]} exd4 {[%emt 0:00:00]} 6. cxd4
{[%emt 0:00:00]} a6 {[%emt 0:00:00]} 7. Bxc6 {[%emt 0:00:00]} dxc6 {[%emt 0:00:
00]} 8. h3 {[%emt 0:00:00]} Ne7 {[%emt 0:00:00]} 9. Nc3 {[%emt 0:00:00]} O-O {
[%emt 0:00:00]} 10. O-O {[%emt 0:00:00]} h6 {[%emt 0:00:00]} 11. Bf4 {[%emt 0:
00:00]} Be6 {[%emt 0:00:00]} 12. Re1 {[%emt 0:00:00]} g5 {[%emt 0:00:00]} 13.
Be5 {[%emt 0:00:00]} f6 {[%emt 0:00:00]} 14. Bh2 {[%emt 0:00:00]} Qd7 {[%emt 0:
00:00]} 15. d5 {[%emt 0:00:00]} Bf7 {[%emt 0:00:00]} 16. dxc6 {[%emt 0:00:00]}
Qxc6 {[%emt 0:00:00]} 17. Rc1 {[%emt 0:00:00]} Qe6 {[%emt 0:00:00]} 18. Bxc7 {
[%emt 0:00:00]} Rac8 {[%emt 0:00:00]} 19. Qd6 {[%emt 0:00:00]} Nc6 {[%emt 0:00:
00]} 20. Qg3 {[%emt 0:00:00]} Bh5 {[%emt 0:00:00]} 21. Rcd1 {[%emt 0:00:00]}
Bxf3 {[%emt 0:00:00]} 22. gxf3 {[%emt 0:00:00]} f5 {[%emt 0:00:00]} 23. Bd6 {
[%emt 0:00:00]} Rfe8 {[%emt 0:00:00]} 24. exf5 {[%emt 0:00:00]} Qxf5 {[%emt 0:
00:00]} 25. Qg4 {[%emt 0:00:00]} Rxe1+ {[%emt 0:00:00]} 26. Rxe1 {[%emt 0:00:
00]} Nd4 {[%emt 0:00:00]} 27. Kg2 {[%emt 0:00:00]} Rc6 {[%emt 0:00:00]} 28.
Re8+ {[%emt 0:00:00]} Kh7 {[%emt 0:00:00]} 29. Ne4 {[%emt 0:00:00]} Qg6 {
[%emt 0:00:00]} 30. Qd7 {[%emt 0:00:00]} Qf5 {[%emt 0:00:00]} 31. Re7 {[%emt 0:
00:00]} Qxd7 {[%emt 0:00:00]} 32. Rxd7 {[%emt 0:00:00]} Kg6 {[%emt 0:00:00]}
33. Rxg7+ {[%emt 0:00:00]} Kxg7 {[%emt 0:00:00]} 34. Be5+ {[%emt 0:00:00]} Kg6
{[%emt 0:00:00]} 35. Bxd4 {[%emt 0:00:00]} b5 {[%emt 0:00:00]} 36. Bc3 {
[%emt 0:00:00]} Kf5 {[%emt 0:00:00]} 37. Ng3+ {[%emt 0:00:00]} Ke6 {[%emt 0:00:
00]} 38. Nf1 {[%emt 0:00:00]} a5 {[%emt 0:00:00]} 39. Bxa5 {[%emt 0:00:00]} Ra6
{[%emt 0:00:00]} 40. b4 {[%emt 0:00:00]} Rc6 {[%emt 0:00:00]} 41. Ne3 {[%emt 0:
01:35]} Rc1 {[%emt 0:00:00]} 42. Ng4 {[%emt 0:00:00]} h5 {[%emt 0:00:00]} 43.
Ne3 {[%emt 0:00:00]} Kd7 {[%emt 0:00:00]} 44. Nf5 {[%emt 0:00:00]} Rd1 {
[%emt 0:00:00]} 45. Ng3 {[%emt 0:00:00]} 1-0

[Event "Gibraltar Masters 18th"]
[Site "Gibraltar"]
[Date "2020.01.25"]
[Round "5.39"]
[White "Haug, Johannes"]
[Black "Bellahcene, Bilel"]
[Result "1-0"]
[ECO "C55"]
[WhiteElo "2407"]
[BlackElo "2536"]
[PlyCount "95"]
[EventDate "2020.01.21"]
[EventType "swiss"]
[EventRounds "10"]
[EventCountry "GGB"]
[SourceTitle "BritBase"]
[Source "John Saunders"]
[SourceDate "2021.06.05"]
[SourceVersion "1"]
[SourceVersionDate "2021.06.05"]
[SourceQuality "1"]
[TimeControl "40/100:0"]
[WhiteClock "0:09:47"]
[BlackClock "0:30:42"]

1. e4 {[%emt 0:00:00]} e5 {[%emt 0:00:00]} 2. Nf3 {[%emt 0:00:00]} Nc6 {
[%emt 0:00:00]} 3. Bc4 {[%emt 0:00:00]} Nf6 {[%emt 0:00:00]} 4. d3 {[%emt 0:00:
00]} h6 {[%emt 0:00:00]} 5. O-O {[%emt 0:00:00]} d6 {[%emt 0:00:00]} 6. c3 {
[%emt 0:00:00]} g5 {[%emt 0:00:00]} 7. Bb3 {[%emt 0:00:00]} Bg7 {[%emt 0:00:00]
} 8. Nbd2 {[%emt 0:00:00]} Nh5 {[%emt 0:00:00]} 9. Nc4 {[%emt 0:00:00]} Nf4 {
[%emt 0:00:00]} 10. d4 {[%emt 0:00:00]} Qf6 {[%emt 0:00:00]} 11. dxe5 {[%emt 0:
00:00]} dxe5 {[%emt 0:00:00]} 12. g3 {[%emt 0:00:00]} Nh3+ {[%emt 0:00:00]} 13.
Kg2 {[%emt 0:00:00]} Bd7 {[%emt 0:00:00]} 14. Ne3 {[%emt 0:00:00]} Ne7 {
[%emt 0:00:00]} 15. Nd5 {[%emt 0:00:00]} Nxd5 {[%emt 0:00:00]} 16. Qxd5 {
[%emt 0:00:00]} c6 {[%emt 0:00:00]} 17. Qd3 {[%emt 0:00:00]} O-O-O {[%emt 0:00:
00]} 18. Qe3 {[%emt 0:00:00]} Kb8 {[%emt 0:00:00]} 19. Bd2 {[%emt 0:00:00]}
Rhg8 {[%emt 0:00:00]} 20. Ng1 {[%emt 0:00:00]} Nf4+ {[%emt 0:00:00]} 21. gxf4 {
[%emt 0:00:00]} gxf4 {[%emt 0:00:00]} 22. Qe2 {[%emt 0:00:00]} Bf8+ {[%emt 0:
00:00]} 23. Kh1 {[%emt 0:00:00]} Qg6 {[%emt 0:00:00]} 24. f3 {[%emt 0:00:00]}
Bc5 {[%emt 0:00:00]} 25. Rf2 {[%emt 0:00:00]} Bc8 {[%emt 0:00:00]} 26. Rd1 {
[%emt 0:00:00]} Bxf2 {[%emt 0:00:00]} 27. Qxf2 {[%emt 0:00:00]} h5 {[%emt 0:00:
00]} 28. Be1 {[%emt 0:00:00]} Rdf8 {[%emt 0:00:00]} 29. Qf1 {[%emt 0:00:00]}
Qg5 {[%emt 0:00:00]} 30. Rd2 {[%emt 0:00:00]} h4 {[%emt 0:00:00]} 31. h3 {
[%emt 0:00:00]} Qe7 {[%emt 0:00:00]} 32. Rg2 {[%emt 0:00:00]} Be6 {[%emt 0:00:
00]} 33. Rxg8 {[%emt 0:00:00]} Rxg8 {[%emt 0:00:00]} 34. Qf2 {[%emt 0:00:00]}
Bxb3 {[%emt 0:00:00]} 35. axb3 {[%emt 0:00:00]} Qg5 {[%emt 0:00:00]} 36. b4 {
[%emt 0:00:00]} f5 {[%emt 0:00:00]} 37. exf5 {[%emt 0:00:11]} Qxf5 {[%emt 0:00:
00]} 38. Qxh4 {[%emt 0:00:34]} e4 {[%emt 0:00:00]} 39. Qf2 {[%emt 0:00:00]} e3
{[%emt 0:00:00]} 40. Qh2 {[%emt 0:00:05]} Ka8 {[%emt 0:00:00]} 41. Qe2 {
[%emt 0:00:00]} a6 {[%emt 0:00:00]} 42. h4 {[%emt 0:00:00]} Rd8 {[%emt 0:00:00]
} 43. Kg2 {[%emt 0:00:00]} Qg6+ {[%emt 0:00:00]} 44. Kf1 {[%emt 0:00:00]} c5 {
[%emt 0:00:00]} 45. Nh3 {[%emt 0:00:00]} Qf5 {[%emt 0:00:00]} 46. Kg2 {[%emt 0:
00:00]} Qb1 {[%emt 0:00:00]} 47. Nxf4 {[%emt 0:00:00]} Qc1 {[%emt 0:00:00]} 48.
bxc5 {[%emt 0:00:00]} 1-0

[Event "Gibraltar Masters 18th"]
[Site "Gibraltar"]
[Date "2020.01.25"]
[Round "5.40"]
[White "Sadhwani, Raunak"]
[Black "Merario Alarcon, Andres"]
[Result "1/2-1/2"]
[ECO "C42"]
[WhiteElo "2522"]
[BlackElo "2412"]
[PlyCount "66"]
[EventDate "2020.01.21"]
[EventType "swiss"]
[EventRounds "10"]
[EventCountry "GGB"]
[SourceTitle "BritBase"]
[Source "John Saunders"]
[SourceDate "2021.06.05"]
[SourceVersion "1"]
[SourceVersionDate "2021.06.05"]
[SourceQuality "1"]
[TimeControl "40/100:0"]
[WhiteClock "0:23:59"]
[BlackClock "0:17:34"]

1. e4 {[%emt 0:00:00]} e5 {[%emt 0:00:00]} 2. Nf3 {[%emt 0:00:00]} Nf6 {
[%emt 0:00:00]} 3. Nxe5 {[%emt 0:00:00]} d6 {[%emt 0:00:00]} 4. Nf3 {[%emt 0:
00:00]} Nxe4 {[%emt 0:00:00]} 5. c4 {[%emt 0:00:00]} Nc6 {[%emt 0:00:00]} 6.
Nc3 {[%emt 0:00:00]} Nxc3 {[%emt 0:00:00]} 7. dxc3 {[%emt 0:00:00]} g6 {
[%emt 0:00:00]} 8. Bg5 {[%emt 0:00:00]} Be7 {[%emt 0:00:00]} 9. Be3 {[%emt 0:
00:00]} O-O {[%emt 0:00:00]} 10. Be2 {[%emt 0:00:00]} Bf6 {[%emt 0:00:00]} 11.
Nd4 {[%emt 0:00:00]} Nxd4 {[%emt 0:00:00]} 12. cxd4 {[%emt 0:00:00]} d5 {
[%emt 0:00:00]} 13. O-O {[%emt 0:00:00]} dxc4 {[%emt 0:00:00]} 14. Bxc4 {
[%emt 0:00:00]} Qd6 {[%emt 0:00:00]} 15. Qf3 {[%emt 0:00:00]} Bg7 {[%emt 0:00:
00]} 16. Rad1 {[%emt 0:00:00]} Qf6 {[%emt 0:00:00]} 17. Qg3 {[%emt 0:00:00]} c6
{[%emt 0:00:00]} 18. d5 {[%emt 0:00:00]} cxd5 {[%emt 0:00:00]} 19. Bd4 {
[%emt 0:00:00]} Qf5 {[%emt 0:00:00]} 20. Bd3 {[%emt 0:00:00]} Qg4 {[%emt 0:00:
00]} 21. Bxg7 {[%emt 0:00:00]} Qxg3 {[%emt 0:00:00]} 22. fxg3 {[%emt 0:00:00]}
Kxg7 {[%emt 0:00:00]} 23. Rc1 {[%emt 0:00:00]} Be6 {[%emt 0:00:00]} 24. Kf2 {
[%emt 0:00:00]} Rfc8 {[%emt 0:00:00]} 25. Ke3 {[%emt 0:00:00]} Kf8 {[%emt 0:00:
00]} 26. Kd4 {[%emt 0:00:00]} Ke7 {[%emt 0:00:00]} 27. Rce1 {[%emt 0:00:00]}
Kd6 {[%emt 0:00:00]} 28. g4 {[%emt 0:00:00]} Rc6 {[%emt 0:00:00]} 29. a3 {
[%emt 0:00:00]} Rac8 {[%emt 0:00:00]} 30. g5 {[%emt 0:00:00]} Rb6 {[%emt 0:00:
00]} 31. Rf2 {[%emt 0:00:00]} Rbc6 {[%emt 0:00:00]} 32. Rff1 {[%emt 0:00:00]}
Rc5 {[%emt 0:00:00]} 33. a4 {[%emt 0:00:00]} R5c6 {[%emt 0:00:00]} 1/2-1/2

[Event "Gibraltar Masters 18th"]
[Site "Gibraltar"]
[Date "2020.01.25"]
[Round "5.41"]
[White "Flom, Gabriel"]
[Black "Sankalp, Gupta"]
[Result "1-0"]
[ECO "E36"]
[WhiteElo "2510"]
[BlackElo "2400"]
[PlyCount "111"]
[EventDate "2020.01.21"]
[EventType "swiss"]
[EventRounds "10"]
[EventCountry "GGB"]
[SourceTitle "BritBase"]
[Source "John Saunders"]
[SourceDate "2021.06.05"]
[SourceVersion "1"]
[SourceVersionDate "2021.06.05"]
[SourceQuality "1"]
[TimeControl "40/100:0"]
[WhiteClock "0:02:17"]
[BlackClock "0:02:52"]

1. d4 {[%emt 0:00:00]} Nf6 {[%emt 0:00:00]} 2. c4 {[%emt 0:00:00]} e6 {[%emt 0:
00:00]} 3. Nc3 {[%emt 0:00:00]} Bb4 {[%emt 0:00:00]} 4. Qc2 {[%emt 0:00:00]} d5
{[%emt 0:00:00]} 5. a3 {[%emt 0:00:00]} Bxc3+ {[%emt 0:00:00]} 6. Qxc3 {
[%emt 0:00:00]} dxc4 {[%emt 0:00:00]} 7. Qxc4 {[%emt 0:00:00]} O-O {[%emt 0:00:
00]} 8. Bg5 {[%emt 0:00:00]} h6 {[%emt 0:00:00]} 9. Bh4 {[%emt 0:00:00]} b6 {
[%emt 0:00:00]} 10. Nf3 {[%emt 0:00:00]} Ba6 {[%emt 0:00:00]} 11. Qa4 {[%emt 0:
00:00]} Qd7 {[%emt 0:00:00]} 12. Qc2 {[%emt 0:00:00]} c5 {[%emt 0:00:00]} 13.
dxc5 {[%emt 0:00:00]} Rc8 {[%emt 0:00:00]} 14. Bxf6 {[%emt 0:00:00]} gxf6 {
[%emt 0:00:00]} 15. Rd1 {[%emt 0:00:00]} Qc6 {[%emt 0:00:00]} 16. Qd2 {[%emt 0:
00:00]} Kg7 {[%emt 0:00:00]} 17. cxb6 {[%emt 0:00:00]} Qxb6 {[%emt 0:00:00]}
18. h4 {[%emt 0:00:00]} Nc6 {[%emt 0:00:00]} 19. Rh3 {[%emt 0:00:00]} Rd8 {
[%emt 0:00:00]} 20. Rg3+ {[%emt 0:00:00]} Kh7 {[%emt 0:00:00]} 21. Qc2+ {
[%emt 0:00:00]} Kh8 {[%emt 0:00:00]} 22. Rxd8+ {[%emt 0:00:00]} Rxd8 {[%emt 0:
00:00]} 23. Qc1 {[%emt 0:00:00]} Kh7 {[%emt 0:00:00]} 24. Nd2 {[%emt 0:00:00]}
Nd4 {[%emt 0:00:00]} 25. Rc3 {[%emt 0:00:00]} Qd6 {[%emt 0:00:00]} 26. e3 {
[%emt 0:00:00]} Bxf1 {[%emt 0:00:00]} 27. Nxf1 {[%emt 0:00:00]} Nf5 {[%emt 0:
00:00]} 28. g3 {[%emt 0:00:00]} Ne7 {[%emt 0:00:00]} 29. Nd2 {[%emt 0:00:00]}
Kg7 {[%emt 0:00:00]} 30. Rc4 {[%emt 0:00:00]} Qd5 {[%emt 0:00:00]} 31. e4 {
[%emt 0:00:00]} Qh5 {[%emt 0:00:00]} 32. Qc3 {[%emt 0:00:00]} Ng6 {[%emt 0:00:
00]} 33. Rd4 {[%emt 0:00:00]} Rxd4 {[%emt 0:00:00]} 34. Qxd4 {[%emt 0:00:00]}
Ne5 {[%emt 0:00:00]} 35. Qe3 {[%emt 0:00:00]} Nc6 {[%emt 0:00:00]} 36. Nf3 {
[%emt 0:00:00]} Qa5+ {[%emt 0:00:00]} 37. Qc3 {[%emt 0:00:00]} Qa4 {[%emt 0:00:
00]} 38. Qd3 {[%emt 0:00:00]} Qa5+ {[%emt 0:00:00]} 39. Kf1 {[%emt 0:00:00]}
Qc5 {[%emt 0:00:00]} 40. Kg2 {[%emt 0:00:00]} a5 {[%emt 0:00:00]} 41. Qc3 {
[%emt 0:00:00]} Qb5 {[%emt 0:00:00]} 42. b3 {[%emt 0:00:00]} e5 {[%emt 0:00:00]
} 43. Qc4 {[%emt 0:00:00]} Qb6 {[%emt 0:00:00]} 44. h5 {[%emt 0:00:00]} Kg8 {
[%emt 0:00:00]} 45. b4 {[%emt 0:00:00]} axb4 {[%emt 0:00:00]} 46. axb4 {
[%emt 0:00:00]} Nd4 {[%emt 0:01:15]} 47. Nxd4 {[%emt 0:02:44]} exd4 {[%emt 0:
00:40]} 48. b5 {[%emt 0:00:00]} Qd8 {[%emt 0:00:00]} 49. Qd5 {[%emt 0:00:00]}
Qb6 {[%emt 0:00:00]} 50. Qc6 {[%emt 0:00:00]} Qd8 {[%emt 0:00:00]} 51. b6 {
[%emt 0:00:00]} d3 {[%emt 0:00:00]} 52. Qc7 {[%emt 0:00:00]} Qe8 {[%emt 0:00:
00]} 53. b7 {[%emt 0:00:00]} Qxe4+ {[%emt 0:00:00]} 54. Kh2 {[%emt 0:00:00]}
Qe2 {[%emt 0:00:00]} 55. b8=Q+ {[%emt 0:00:00]} Kg7 {[%emt 0:00:00]} 56. Qc5 {
[%emt 0:00:00]} 1-0

[Event "Gibraltar Masters 18th"]
[Site "Gibraltar"]
[Date "2020.01.25"]
[Round "5.42"]
[White "Petrov, Martin"]
[Black "Lujan, Carolina"]
[Result "1/2-1/2"]
[ECO "B85"]
[WhiteElo "2504"]
[BlackElo "2330"]
[PlyCount "84"]
[EventDate "2020.01.21"]
[EventType "swiss"]
[EventRounds "10"]
[EventCountry "GGB"]
[SourceTitle "BritBase"]
[Source "John Saunders"]
[SourceDate "2021.06.05"]
[SourceVersion "1"]
[SourceVersionDate "2021.06.05"]
[SourceQuality "1"]
[TimeControl "40/100:0"]
[WhiteClock "0:05:19"]
[BlackClock "0:19:14"]

1. e4 {[%emt 0:00:00]} c5 {[%emt 0:00:00]} 2. Nf3 {[%emt 0:00:00]} e6 {[%emt 0:
00:00]} 3. d4 {[%emt 0:00:00]} cxd4 {[%emt 0:00:00]} 4. Nxd4 {[%emt 0:00:00]}
Nc6 {[%emt 0:00:00]} 5. Nc3 {[%emt 0:00:00]} Qc7 {[%emt 0:00:00]} 6. Be2 {
[%emt 0:00:00]} Nf6 {[%emt 0:00:00]} 7. O-O {[%emt 0:00:00]} a6 {[%emt 0:00:00]
} 8. Be3 {[%emt 0:00:00]} Be7 {[%emt 0:00:00]} 9. f4 {[%emt 0:00:00]} d6 {
[%emt 0:00:00]} 10. Kh1 {[%emt 0:00:00]} O-O {[%emt 0:00:00]} 11. Qe1 {[%emt 0:
00:00]} Nxd4 {[%emt 0:00:00]} 12. Bxd4 {[%emt 0:00:00]} b5 {[%emt 0:00:00]} 13.
a3 {[%emt 0:00:00]} Bb7 {[%emt 0:00:00]} 14. Qg3 {[%emt 0:00:00]} Rad8 {
[%emt 0:00:00]} 15. Rae1 {[%emt 0:00:00]} Bc6 {[%emt 0:00:00]} 16. Bd3 {
[%emt 0:00:00]} Qd7 {[%emt 0:00:00]} 17. e5 {[%emt 0:00:00]} dxe5 {[%emt 0:00:
00]} 18. Bxe5 {[%emt 0:00:00]} Nh5 {[%emt 0:00:00]} 19. Qh3 {[%emt 0:00:00]} g6
{[%emt 0:00:00]} 20. f5 {[%emt 0:00:00]} exf5 {[%emt 0:00:00]} 21. Bxf5 {
[%emt 0:00:00]} Qb7 {[%emt 0:00:00]} 22. Be4 {[%emt 0:00:00]} Rd2 {[%emt 0:00:
00]} 23. Qf3 {[%emt 0:00:00]} Bxe4 {[%emt 0:00:00]} 24. Nxe4 {[%emt 0:00:00]}
Rd7 {[%emt 0:00:00]} 25. Rd1 {[%emt 0:00:00]} Rxd1 {[%emt 0:00:00]} 26. Rxd1 {
[%emt 0:00:00]} Qc8 {[%emt 0:00:00]} 27. g4 {[%emt 0:00:00]} Qe6 {[%emt 0:00:
00]} 28. Bd6 {[%emt 0:00:00]} Rd8 {[%emt 0:00:00]} 29. gxh5 {[%emt 0:00:00]}
Bxd6 {[%emt 0:00:00]} 30. Nxd6 {[%emt 0:00:00]} Rxd6 {[%emt 0:00:00]} 31. Qa8+
{[%emt 0:00:00]} Kg7 {[%emt 0:00:00]} 32. h6+ {[%emt 0:00:00]} Kxh6 {[%emt 0:
00:00]} 33. Qf8+ {[%emt 0:00:00]} Kh5 {[%emt 0:00:00]} 34. Qxd6 {[%emt 0:00:00]
} Qe4+ {[%emt 0:00:00]} 35. Kg1 {[%emt 0:00:00]} Qe3+ {[%emt 0:00:00]} 36. Kf1
{[%emt 0:00:00]} Qf3+ {[%emt 0:00:00]} 37. Ke1 {[%emt 0:00:00]} Qe3+ {[%emt 0:
00:00]} 38. Kf1 {[%emt 0:00:00]} Qf3+ {[%emt 0:00:00]} 39. Kg1 {[%emt 0:00:00]}
Qe3+ {[%emt 0:00:00]} 40. Kg2 {[%emt 0:00:00]} Qe2+ {[%emt 0:00:00]} 41. Kg3 {
[%emt 0:00:00]} Qe3+ {[%emt 0:00:00]} 42. Kg2 {[%emt 0:00:00]} Qe2+ {[%emt 0:
00:00]} 1/2-1/2